bitfinex-derivatives/quotes_ETHF0:USTF0_20210402
["timestamp","ask_amount","ask_price","bid_price","bid_amount"]
[1617371248482,2.05436721,1998.8,1998.6,2.90695]
[1617371248683,0.93840598,1998.7,1998.6,2.90695]
[1617371248883,1.52234604,1998.7,1998.6,2.90695]
[1617371249084,0.93840598,1998.7,1998.6,2.90695]
[1617371249484,4.42931088,1998.7,1998.6,2.90695]
[1617371249884,3.84535598,1998.7,1998.6,2.90695]
[1617371250085,4.42930613,1998.7,1998.6,2.90695]
[1617371253590,5.54548234,1998.7,1998.6,2.90695]
[1617371254188,35.54548234,1998.7,1998.6,1.27495]
[1617371255190,34.60707636,1998.7,1998.6,0.93005]
[1617371255592,34.60707636,1998.7,1998.4,2.90695]
[1617371255790,4.60707636,1998.7,1998.4,2.90695]
[1617371255990,34.60707636,1998.7,1998.4,2.90695]
[1617371256191,0.70320561,1998.5,1998.4,2.13315]
[1617371256390,0.70320561,1998.5,1998.4,1.96665]
[1617371256789,2.20200561,1998.5,1998.4,1.96665]
[1617371257391,75.68422904,1998.5,1998.4,1.96665]
[1617371257590,78.59117904,1998.5,1998.4,1.96665]
[1617371258091,77.30445,1998.5,1998.4,1.96665]
[1617371258790,78.00756497,1998.5,1998.4,1.96665]
[1617371260494,78.00756497,1998.5,1998.4,1.88985]
[1617371262096,77.30445,1998.5,1998.4,1.88985]
[1617371262393,77.01900481,1998.5,1998.4,1.88985]
[1617371262794,76.31585,1998.5,1998.4,1.88985]
[1617371263193,76.78458993,1998.5,1998.4,1.88985]
[1617371263692,73.87763993,1998.5,1998.4,1.88985]
[1617371265694,76.78458993,1998.5,1998.4,1.88985]
[1617371266297,73.87763993,1998.5,1998.4,1.88985]
[1617371266997,73.87763993,1998.5,1998.4,1.55755]
[1617371267697,76.78458993,1998.5,1998.4,1.55755]
[1617371268501,76.60870269,1998.5,1998.4,1.55755]
[1617371268803,76.78441839,1998.5,1998.4,1.55755]
[1617371273007,4.87431839,1998.5,1998.4,1.55755]
[1617371273208,0.46856839,1998.5,1998.4,1.55755]
[1617371273410,0.29284313,1998.5,1998.4,1.55755]
[1617371273709,3.03521566,1998.8,1998.4,1.55755]
[1617371273908,0.46853551,1998.7,1998.4,1.55755]
[1617371275209,0.05856507,1998.5,1998.4,1.55755]
[1617371276912,0.0585635,1998.6,1998.4,1.55755]
[1617371278613,0.05858074,1998.5,1998.4,1.55755]
[1617371278915,73.01968074,1998.5,1998.4,1.55755]
[1617371279514,72.9611,1998.5,1998.4,1.55755]
[1617371279716,73.01966222,1998.5,1998.4,1.55755]
[1617371280114,72.9611,1998.5,1998.4,1.55755]
[1617371280814,71.9611,1998.5,1998.4,1.55755]
[1617371282216,72.01966217,1998.5,1998.4,1.55755]
[1617371283422,71.9611,1998.5,1998.4,1.55755]
[1617371287819,73.86805,1998.5,1998.4,1.55755]
[1617371288220,74.33662381,1998.5,1998.4,1.55755]
[1617371288920,75.41855,1998.5,1998.4,1.55755]
[1617371289721,76.12132565,1998.5,1998.4,1.55755]
[1617371290622,75.41855,1998.5,1998.4,1.55755]
[1617371290929,76.1216237,1998.5,1998.4,1.55755]
[1617371291125,74.5711237,1998.5,1998.4,1.55755]
[1617371291629,73.86805,1998.5,1998.4,1.55755]
[1617371292028,74.57112206,1998.5,1998.4,1.55755]
[1617371292428,73.86805,1998.5,1998.4,1.55755]
[1617371293431,74.57093862,1998.5,1998.4,1.55755]
[1617371294832,73.57093862,1998.5,1998.4,1.55755]
[1617371295530,72.86805,1998.5,1998.4,1.55755]
[1617371297432,73.33660622,1998.5,1998.4,1.55755]
[1617371297631,73.33660622,1998.5,1998.4,3.03265]
[1617371297833,70.42965622,1998.5,1998.4,3.03265]
[1617371298435,69.9611,1998.5,1998.4,3.03265]
[1617371301737,68.9611,1998.5,1998.4,3.03265]
[1617371301938,69.9648,1998.5,1998.4,3.03265]
[1617371303938,68.9611,1998.5,1998.4,3.03265]
[1617371304539,68.9611,1998.5,1998.4,1.55755]
[1617371304739,69.4297982,1998.5,1998.4,1.55755]
[1617371305940,68.9611,1998.5,1998.4,1.55755]
[1617371307641,69.4297928,1998.5,1998.4,1.55755]
[1617371308643,68.9611,1998.5,1998.4,1.55755]
[1617371308842,67.9611,1998.5,1998.4,1.55755]
[1617371313445,68.9544,1998.5,1998.4,1.55755]
[1617371313647,67.9611,1998.5,1998.4,1.55755]
[1617371313846,0.70400211,1998.6,1998.4,1.55755]
[1617371314046,0.70400211,1998.6,1998.5,79.6549]
[1617371314246,0.70400211,1998.6,1998.5,81.6123]
[1617371315549,0.70400211,1998.6,1998.5,79.6549]
[1617371315749,0.6426716,1998.8,1998.5,79.6549]
[1617371315948,0.6426716,1998.8,1998.7,2.90695]
[1617371316848,2.90695,1999.0,1998.7,2.90695]
[1617371317049,0.57852622,1998.8,1998.7,2.90695]
[1617371317450,0.57852652,1998.9,1998.7,2.90695]
[1617371320551,1.68638786,1998.9,1998.7,2.90695]
[1617371322950,0.68638786,1998.9,1998.7,2.90695]
[1617371326054,0.68638786,1998.9,1998.7,4.81895]
[1617371326858,69.6135,1999.0,1998.7,4.81895]
[1617371327254,1.17443596,1999.2,1998.7,4.81895]
[1617371327455,1.17443596,1999.2,1998.9,66.4917]
[1617371327655,1.17437274,1999.3,1998.9,66.4917]
[1617371328057,1.17437087,1999.4,1999.2,2.90695]
[1617371328257,1.17437087,1999.4,1999.2,4.12715]
[1617371329859,0.17437087,1999.4,1999.2,4.12715]
[1617371331660,2.90695,1999.6,1999.2,4.12715]
[1617371331859,4.96492711,1999.6,1999.2,4.12715]
[1617371332059,4.96492711,1999.6,1999.5,2.90695]
[1617371332261,2.90695,1999.6,1999.5,2.90695]
[1617371334162,2.05795994,1999.7,1999.5,2.90695]
[1617371336763,2.90695,1999.8,1999.5,2.90695]
[1617371336963,1.90695,1999.8,1999.5,2.90695]
[1617371338062,1.90695,1999.8,1999.7,2.90695]
[1617371339066,2.90435,1999.8,1999.7,2.90695]
[1617371340068,2.90435,1999.8,1999.4,2.90695]
[1617371340269,4.95973113,1999.8,1999.4,2.90695]
[1617371340871,2.90435,1999.8,1999.4,2.90695]
[1617371341270,1.90695,1999.8,1999.4,2.90695]
[1617371342071,4.62638173,1999.9,1999.7,2.90695]
[1617371343472,4.62638173,1999.9,1999.7,1.91725]
[1617371344073,2.90695,1999.8,1999.7,1.91725]
[1617371350276,3.74290557,1999.9,1999.7,3.88745]
[1617371350677,0.93750256,1999.8,1999.7,3.88745]
[1617371351976,0.93748747,1999.9,1999.7,3.88745]
[1617371352577,61.82985256,2000.0,1999.7,3.88745]
[1617371352776,63.00170584,2000.0,1999.7,3.88745]
[1617371352976,1.07863082,1999.9,1999.7,3.88745]
[1617371354178,2.90695,1999.8,1999.7,3.88745]
[1617371354678,3.46650015,1999.8,1999.7,3.88745]
[1617371355078,3.46650015,1999.8,1999.7,1.91725]
[1617371357482,3.46650015,1999.8,1999.7,70.33475]
[1617371358083,3.46650015,1999.8,1999.7,1.91725]
[1617371358282,0.55955015,1999.8,1999.7,1.91725]
[1617371358884,2.46670015,2000.0,1999.7,3.66485]
[1617371359083,2.46670015,2000.0,1999.8,66.1049]
[1617371360182,2.46670015,2000.0,1999.9,2.90695]
[1617371360783,2.46670015,2000.0,1999.8,58.01185]
[1617371360983,2.46670015,2000.0,1999.7,1.7476]
[1617371362287,2.46670015,2000.0,1999.9,2.90695]
[1617371365893,1.46690015,2000.0,1999.9,2.90695]
[1617371368594,1.17026821,2000.4,2000.0,70.902]
[1617371368796,1.17016963,2000.6,2000.0,70.902]
[1617371369008,1.17016963,2000.6,2000.0,100.902]
[1617371369207,0.46803724,2000.2,2000.0,100.902]
[1617371369397,0.46803724,2000.2,2000.1,2.0]
[1617371369603,0.46802372,2000.3,2000.1,32.0]
[1617371370300,4.07697589,2001.0,2000.2,2.90695]
[1617371370499,4.07697589,2001.0,2000.2,4.90695]
[1617371370500,1.17002589,2001.0,2000.2,4.90695]
[1617371370700,1.16987362,2001.1,2000.2,4.90695]
[1617371371100,0.05848151,2000.6,2000.2,4.90695]
[1617371371300,0.05848151,2000.6,2000.3,30.0]
[1617371371501,2.571,2002.0,2000.3,30.0]
[1617371371502,0.0584803,2000.7,2000.4,2.0]
[1617371371700,0.0584803,2000.7,2000.5,30.0]
[1617371371902,0.05823185,2001.5,2000.6,2.0]
[1617371372103,0.05823185,2001.5,2000.9,56.9496]
[1617371372301,0.05823185,2001.5,2001.4,2.90695]
[1617371372500,0.05823185,2001.5,2001.4,4.26715]
[1617371372902,1.96538185,2001.8,2001.4,4.26715]
[1617371373102,61.6628,2001.5,2001.4,4.26715]
[1617371375402,2.571,2002.0,2001.4,4.26715]
[1617371375602,2.571,2002.0,2001.4,68.82155]
[1617371376402,2.571,2002.0,2001.9,4.50825]
[1617371378305,2.571,2002.0,2001.9,61.91275]
[1617371379805,2.571,2002.0,2001.9,60.96155]
[1617371380006,2.90695,2002.1,2001.9,60.96155]
[1617371381206,0.69874065,2002.2,2001.9,60.96155]
[1617371381406,0.69872118,2002.3,2001.9,60.96155]
[1617371381720,0.69868677,2002.4,2001.9,60.96155]
[1617371381909,0.69868677,2002.4,2001.9,33.55705]
[1617371382108,2.571,2002.5,2001.9,35.55705]
[1617371382307,2.571,2002.5,2002.4,77.6635]
[1617371382508,2.571,2002.5,2002.4,81.84825]
[1617371382807,0.69863781,2003.0,2002.4,81.84825]
[1617371383207,0.69858678,2003.1,2002.4,81.84825]
[1617371383408,0.69858678,2003.1,2002.4,83.84825]
[1617371383609,0.69858678,2003.1,2002.4,113.84825]
[1617371383809,2.571,2003.6,2002.4,111.84825]
[1617371384008,2.571,2003.6,2002.4,113.84825]
[1617371384411,2.571,2003.6,2002.4,111.84825]
[1617371384609,2.571,2003.6,2003.5,4.41905]
[1617371385409,2.571,2003.6,2003.5,1.5121]
[1617371386611,5.47795,2003.6,2003.1,2.90695]
[1617371386809,5.47795,2003.6,2002.4,1.2778]
[1617371386810,69.7661,2003.5,2001.8,58.6436]
[1617371387014,5.47795,2003.6,1996.9,2.571]
[1617371387015,37.04895,2003.6,1997.8,1.1]
[1617371387209,69.7807,2002.3,2001.9,2.0]
[1617371387409,71.0868,2002.3,2000.6,58.6559]
[1617371388009,1.3061,2002.3,2000.8,30.0]
[1617371388210,65.8495,2002.3,2001.1,74.5409]
[1617371388410,65.8495,2002.3,2001.2,2.0]
[1617371388609,68.75645,2002.3,2002.2,2.90695]
[1617371390110,4.21305,2002.3,2001.2,2.0]
[1617371390311,61.5213,2001.5,2001.0,2.0]
[1617371390511,62.8079,2001.5,2001.4,2.90695]
[1617371392113,1.3061,2002.3,2001.4,2.90695]
[1617371392414,61.6829,2002.3,2001.4,2.90695]
[1617371392614,61.6829,2002.3,2002.1,2.90695]
[1617371394013,60.6831,2002.3,2002.1,2.90695]
[1617371396816,0.3063,2002.3,2002.1,2.90695]
[1617371397017,2.90695,2002.4,2002.1,2.90695]
[1617371397818,2.90695,2002.4,2001.4,1.9361]
[1617371398019,61.6113,2002.0,2001.0,76.221]
[1617371398618,64.51825,2002.0,2001.9,2.90695]
[1617371400223,61.6113,2002.0,2001.9,2.90695]
[1617371401023,60.6115,2002.0,2001.9,2.90695]
[1617371406334,61.8281,2002.0,2001.0,76.221]
[1617371406536,1.2166,2002.0,2001.0,2.0]
[1617371406736,1.2166,2002.0,2001.6,2.90695]
[1617371407939,0.2168,2002.0,2001.6,2.90695]
[1617371408739,2.90695,2001.7,2001.6,2.90695]
[1617371409541,2.90695,2001.7,2000.0,1.9056]
[1617371409742,64.9082,2001.0,1999.8,101.4743]
[1617371409941,66.486,2001.0,1999.8,101.4743]
[1617371410141,66.486,2001.0,1999.9,2.0]
[1617371410341,66.486,2001.0,1999.8,71.4743]
[1617371410741,69.39295,2001.0,2000.9,2.90695]
[1617371411543,4.48475,2001.0,2000.9,2.90695]
[1617371412143,4.48475,2001.0,1999.3,2.0]
[1617371412345,72.4746,2000.1,1999.3,2.0]
[1617371412744,72.4746,2000.1,2000.0,2.90695]
[1617371414147,1.5778,2001.0,2000.0,2.90695]
[1617371414547,1.5778,2001.0,2000.4,77.9155]
[1617371414747,30.0,2001.4,2000.7,2.90695]
[1617371414946,29.0002,2001.4,2000.7,2.90695]
[1617371415146,32.571,2001.7,2000.7,2.90695]
[1617371415347,2.571,2001.7,2000.7,2.90695]
[1617371416050,2.571,2001.7,2000.3,1.6582]
[1617371416258,30.0,2001.6,1999.6,2.0]
[1617371416449,58.8482,2000.7,1999.6,2.0]
[1617371416662,58.8482,2000.7,2000.4,2.90695]
[1617371416663,59.8478,2000.7,2000.4,2.90695]
[1617371416860,58.8482,2000.7,2000.4,2.90695]
[1617371418855,2.90695,2000.5,2000.4,2.90695]
[1617371425563,2.90695,2000.5,1999.0,32.0]
[1617371426166,2.90695,2000.5,1998.5,30.0]
[1617371427172,58.8482,2000.7,2000.1,2.90695]
[1617371427371,88.8482,2000.7,2000.1,2.90695]
[1617371427773,58.8482,2000.7,2000.1,2.90695]
[1617371428673,30.0,2000.6,2000.1,2.90695]
[1617371428873,31.5594,2000.6,2000.1,2.90695]
[1617371429272,2.90695,2000.2,2000.1,2.90695]
[1617371432075,13.0,2000.5,2000.1,2.90695]
[1617371432273,13.0,2000.5,2000.1,4.54215]
[1617371433078,12.0008,2000.5,2000.1,4.54215]
[1617371433279,12.0008,2000.5,2000.4,2.90695]
[1617371438989,84.0491,2000.5,2000.4,2.90695]
[1617371440087,83.0499,2000.5,2000.4,2.90695]
[1617371442289,11.0016,2000.5,2000.4,2.90695]
[1617371447094,10.0024,2000.5,2000.4,2.90695]
[1617371451699,81.4983,2000.5,2000.4,2.90695]
[1617371453000,81.52745618,2000.5,2000.4,2.90695]
[1617371454103,80.52825618,2000.5,2000.4,2.90695]
[1617371458810,80.4991,2000.5,2000.4,2.90695]
[1617371459211,80.52825579,2000.5,2000.4,2.90695]
[1617371459810,9.0032,2000.5,2000.4,4.73975]
[1617371461013,8.004,2000.5,2000.4,4.73975]
[1617371462712,8.004,2000.5,2000.4,6.73975]
[1617371463910,8.004,2000.5,2000.4,4.73975]
[1617371464310,8.004,2000.5,2000.4,2.90695]
[1617371465712,10.91095,2000.5,2000.4,2.90695]
[1617371466713,10.94010563,2000.5,2000.4,2.90695]
[1617371468113,75.41630563,2000.5,2000.4,2.90695]
[1617371469714,75.38715,2000.5,2000.4,2.90695]
[1617371473216,75.41631284,2000.5,2000.4,2.90695]
[1617371473415,75.38715,2000.5,2000.4,2.90695]
[1617371475016,74.38795,2000.5,2000.4,2.90695]
[1617371476518,75.08955952,2000.5,2000.4,2.90695]
[1617371478223,75.08955952,2000.5,1999.5,71.8944]
[1617371478423,1.61593515,1999.9,1999.5,71.8944]
[1617371478824,1.61593515,1999.9,1998.5,2.0]
[1617371479024,58.21043515,1999.9,1998.9,58.3776]
[1617371479228,1.61593515,1999.9,1998.8,2.0]
[1617371479428,60.86,1999.4,1998.8,2.0]
[1617371479828,60.86,1999.4,1999.3,2.90695]
[1617371482131,59.8608,1999.4,1999.3,2.90695]
[1617371483235,59.8900329,1999.4,1999.3,2.90695]
[1617371483834,59.8608,1999.4,1999.3,2.90695]
[1617371484235,1.56593311,1999.4,1999.3,2.90695]
[1617371485337,1.8294778,1999.4,1999.3,2.90695]
[1617371485936,4.7364278,1999.4,1999.3,2.90695]
[1617371487137,4.44365,1999.4,1999.3,2.90695]
[1617371489138,3.44445,1999.4,1999.3,2.90695]
[1617371490537,3.91291506,1999.4,1999.3,2.90695]
[1617371491738,3.44445,1999.4,1999.3,2.90695]
[1617371492839,33.44445,1999.4,1999.3,2.90695]
[1617371493040,33.44445,1999.4,1997.6,82.3911]
[1617371493246,60.6963,1998.5,1997.6,82.3911]
[1617371493444,62.4823,1998.5,1997.7,2.0]
[1617371494140,62.4823,1998.5,1998.4,2.90695]
[1617371494342,63.473,1998.5,1998.4,2.90695]
[1617371495143,62.4823,1998.5,1998.4,2.90695]
[1617371495947,1.786,1998.5,1998.4,2.90695]
[1617371496145,0.7868,1998.5,1998.4,2.90695]
[1617371496343,0.9896,1998.6,1998.4,2.90695]
[1617371496542,2.90695,1998.7,1998.4,2.90695]
[1617371497844,0.02924118,1998.8,1998.6,2.90695]
[1617371498044,0.02924049,1998.9,1998.6,4.16465]
[1617371498446,0.46784783,1999.3,1998.6,4.16465]
[1617371498447,0.02924049,1999.0,1998.6,4.16465]
[1617371498845,0.02926728,1998.9,1998.6,4.16465]
[1617371499646,0.02926689,1999.0,1998.6,4.16465]
[1617371500047,0.02926689,1999.0,1998.9,2.90695]
[1617371500447,2.90695,1999.1,1998.9,2.90695]
[1617371500650,71.111,1998.9,1998.6,1.2577]
[1617371500848,71.111,1998.9,1998.1,2.0]
[1617371501049,0.02926922,1998.7,1998.1,2.0]
[1617371501648,0.02926922,1998.7,1997.7,1.2661]
[1617371501954,0.02926922,1998.7,1998.6,2.90695]
[1617371503353,0.02926878,1998.8,1998.6,2.90695]
[1617371503556,71.111,1998.9,1998.6,2.90695]
[1617371503953,71.111,1998.9,1998.8,2.90695]
[1617371505374,2.93617289,1999.2,1998.8,2.90695]
[1617371505855,2.90695,1999.2,1998.8,2.90695]
[1617371506056,2.93617039,1999.4,1999.1,4.22415]
[1617371507254,0.02922039,1999.4,1999.1,4.22415]
[1617371508054,66.11582429,1999.7,1999.3,2.90695]
[1617371510057,66.11582429,1999.7,1999.6,2.90695]
[1617371510258,66.11582429,1999.7,1999.6,4.31455]
[1617371515066,65.11562429,1999.7,1999.6,4.31455]
[1617371519768,65.11562429,1999.7,1999.6,2.90695]
[1617371519969,66.11852429,1999.7,1999.6,2.90695]
[1617371522070,65.11832429,1999.7,1999.6,2.90695]
[1617371522469,64.11542429,1999.7,1999.6,2.90695]
[1617371522670,2.90695,1999.8,1999.6,2.90695]
[1617371523472,56.9264,1999.7,1999.6,4.38725]
[1617371525875,2.90695,1999.8,1999.6,4.38725]
[1617371526074,3.90865,1999.8,1999.6,4.38725]
[1617371527378,2.90695,1999.8,1999.6,4.38725]
[1617371528175,81.1673,1999.7,1999.6,4.38725]
[1617371529076,80.1671,1999.7,1999.6,4.38725]
[1617371530075,0.46723974,2000.1,1999.6,4.38725]
[1617371530282,0.46719203,2000.3,1999.6,4.38725]
[1617371530675,3.37406064,2000.4,1999.6,4.38725]
[1617371531076,2.90695,2000.4,1999.6,4.38725]
[1617371532077,2.90695,2000.4,1999.6,6.38725]
[1617371532278,2.90695,2000.4,2000.3,4.82095]
[1617371534581,6.0056,2000.5,2000.3,4.82095]
[1617371534782,6.0056,2000.5,2000.4,62.7803]
[1617371534983,6.0056,2000.5,2000.4,64.7803]
[1617371536183,5.0054,2000.5,2000.4,64.7803]
[1617371536785,5.0054,2000.5,2000.4,62.7803]
[1617371543191,4.0052,2000.5,2000.4,62.7803]
[1617371549998,4.0052,2000.5,2000.3,2.90695]
[1617371550197,3.005,2000.5,2000.3,2.90695]
[1617371550398,3.005,2000.5,2000.3,4.90695]
[1617371551799,3.005,2000.5,2000.3,34.90695]
[1617371553903,3.005,2000.5,2000.3,4.90695]
[1617371554508,3.005,2000.5,2000.3,62.20405]
[1617371557104,2.0048,2000.5,2000.3,62.20405]
[1617371558408,2.0048,2000.5,2000.3,60.20405]
[1617371563232,2.0048,2000.5,2000.3,2.90695]
[1617371563425,3.8346,2000.5,2000.3,2.90695]
[1617371564228,2.8344,2000.5,2000.3,2.90695]
[1617371564420,2.90695,2000.4,2000.3,2.90695]
[1617371566820,2.8344,2000.5,2000.3,2.90695]
[1617371568421,1.0046,2000.5,2000.3,2.90695]
[1617371569422,1.0046,2000.5,2000.3,4.81235]
[1617371569622,1.0046,2000.5,2000.3,6.81235]
[1617371570024,1.0046,2000.5,2000.3,4.81235]
[1617371570223,1.0046,2000.5,2000.4,2.0]
[1617371571225,0.0044,2000.5,2000.4,2.0]
[1617371571626,0.0044,2000.5,2000.4,32.0]
[1617371575031,0.0044,2000.5,2000.4,2.0]
[1617371576739,0.0044,2000.5,2000.3,6.81235]
[1617371581848,0.0044,2000.5,2000.3,4.90695]
[1617371582049,0.0044,2000.5,2000.3,2.90695]
[1617371582249,1.5152,2000.5,2000.3,2.90695]
[1617371582449,4.42215,2000.5,2000.3,2.90695]
[1617371582650,1.5152,2000.5,2000.3,2.90695]
[1617371583450,1.5152,2000.5,2000.4,61.3627]
[1617371584049,1.5152,2000.5,2000.3,2.90695]
[1617371584250,58.8212,2000.5,2000.3,2.90695]
[1617371588055,1.5152,2000.5,2000.3,2.90695]
[1617371588463,0.0044,2000.5,2000.3,2.90695]
[1617371589164,2.43695607,2001.2,2000.3,2.90695]
[1617371589364,2.43695607,2001.2,2000.5,61.5283]
[1617371590568,2.43695607,2001.2,2001.1,2.90695]
[1617371592367,2.43695607,2001.2,2000.5,61.5283]
[1617371592568,1.8583,2001.4,2000.8,2.90695]
[1617371593069,2.55742639,2001.4,2000.8,2.90695]
[1617371593469,0.70013213,2001.2,2000.8,2.90695]
[1617371593669,30.70013213,2001.2,1999.6,85.8141]
[1617371593869,82.4352,2000.3,1999.6,83.8141]
[1617371594069,84.9755,2000.3,1999.6,83.8141]
[1617371594669,84.9755,2000.3,2000.0,2.90695]
[1617371596172,83.9768,2000.3,2000.0,2.90695]
[1617371596569,2.90695,2000.1,2000.0,2.90695]
[1617371597169,82.9813,2000.3,2000.0,2.90695]
[1617371598572,2.90695,2000.1,2000.0,2.90695]
[1617371600271,70.817,2000.0,1998.4,83.5596]
[1617371600672,70.817,2000.0,1999.5,2.90695]
[1617371601274,0.70080997,2000.2,1999.8,66.248]
[1617371601473,0.70077584,2000.3,1999.8,66.248]
[1617371601672,0.70073974,2000.4,1999.8,66.248]
[1617371602073,0.70069087,2000.6,1999.8,66.248]
[1617371602473,0.70066707,2000.7,1999.8,66.248]
[1617371602672,0.70066707,2000.7,2000.5,2.90695]
[1617371603274,59.24902277,2000.9,2000.5,2.90695]
[1617371603876,58.3148,2000.9,2000.5,2.90695]
[1617371604074,59.24898896,2000.9,2000.5,2.90695]
[1617371604274,60.25728896,2000.9,2000.5,2.90695]
[1617371604574,2.90695,2000.6,2000.5,2.90695]
[1617371604974,3.46080829,2000.6,2000.5,2.90695]
[1617371605376,3.46080829,2000.6,1999.5,1.2984]
[1617371605575,78.8531,2000.1,1999.0,59.6873]
[1617371605776,78.8531,2000.1,1999.0,89.6873]
[1617371605976,78.8531,2000.1,1999.1,2.0]
[1617371606676,81.76005,2000.1,2000.0,2.90695]
[1617371607077,78.8531,2000.1,2000.0,2.90695]
[1617371607276,0.93557555,2000.6,2000.0,2.90695]
[1617371607476,0.93557555,2000.6,2000.0,64.89545]
[1617371607676,0.93557555,2000.6,2000.0,2.90695]
[1617371608076,60.7188,2000.2,2000.0,2.90695]
[1617371608276,60.7188,2000.2,1999.1,2.0]
[1617371608477,60.7188,2000.2,1998.9,62.0412]
[1617371608677,60.7188,2000.2,2000.1,2.90695]
[1617371609678,62.5787,2000.2,1998.9,62.0412]
[1617371610279,61.58,2000.2,1998.9,62.0412]
[1617371610679,61.58,2000.2,1999.7,2.90695]
[1617371611479,31.8599,2000.2,1998.5,202.0]
[1617371611879,66.8196,1999.3,1998.5,200.0]
[1617371612678,69.72655,1999.3,1999.2,2.90695]
[1617371614079,4.81065,1999.3,1999.2,2.90695]
[1617371614288,4.81065,1999.3,1998.7,82.9668]
[1617371614678,1.9037,1999.3,1998.9,2.90695]
[1617371616782,2.90695,1999.0,1998.9,2.90695]
[1617371617180,1.90825,1999.0,1998.9,2.90695]
[1617371617782,61.9002,1999.5,1998.9,2.90695]
[1617371617983,1.16889492,2000.2,1998.9,4.83755]
[1617371618184,11.16853922,2001.6,1999.4,59.2264]
[1617371618185,0.93509652,2000.1,1999.4,59.2264]
[1617371618386,0.93509652,2000.1,1999.4,61.2257]
[1617371618586,14.88977065,2000.3,1999.4,61.2257]
[1617371618587,0.93496485,2000.3,1999.4,61.2257]
[1617371618786,0.93496485,2000.3,2000.2,2.35338757]
[1617371618986,2.50183885,2000.5,2000.2,4.32058757]
[1617371619185,2.50183885,2000.5,2000.2,84.48858757]
[1617371619785,0.93488615,2000.7,2000.2,84.48858757]
[1617371619984,0.93488615,2000.7,2000.2,82.1352]
[1617371620787,2.90695,2000.3,2000.2,85.04215]
[1617371620986,2.90695,2000.3,2000.2,4.87415]
[1617371622594,2.90695,2000.3,2000.2,2.90695]
[1617371623193,2.90695,2000.3,1999.5,62.4009]
[1617371623893,2.90695,2000.3,1999.6,2.0]
[1617371624099,2.90695,2000.3,1999.5,62.4009]
[1617371624293,1.90825,2000.3,1999.5,62.4009]
[1617371624795,1.90825,2000.3,2000.2,2.90695]
[1617371626797,74.74785,2000.5,2000.2,2.90695]
[1617371627001,74.74785,2000.5,1999.5,62.4009]
[1617371627801,76.34635,2000.5,1999.5,62.4009]
[1617371628401,77.28104338,2000.5,1999.5,62.4009]
[1617371628601,76.34635,2000.5,1999.5,62.4009]
[1617371628903,76.34635,2000.5,2000.4,2.90695]
[1617371629103,74.74785,2000.5,2000.4,2.90695]
[1617371629804,74.74785,2000.5,1999.6,1.7826]
[1617371631206,73.74915,2000.5,1999.6,1.7826]
[1617371631406,73.74915,2000.5,1999.5,62.4009]
[1617371632008,75.55395,2000.5,1999.5,62.4009]
[1617371632907,72.647,2000.5,2000.0,2.90695]
[1617371633108,70.8422,2000.5,2000.0,2.90695]
[1617371633709,0.93467651,2000.6,1998.6,2.0]
[1617371633909,64.4426,2000.0,1998.6,2.0]
[1617371634109,65.4303,2000.0,1998.5,200.0]
[1617371634311,65.4303,2000.0,1998.5,230.0]
[1617371635009,65.4303,2000.0,1999.4,2.90695]
[1617371635410,30.0,1999.9,1999.4,2.90695]
[1617371635612,65.4303,2000.0,1998.5,200.0]
[1617371636110,65.4303,2000.0,1998.6,2.0]
[1617371636310,65.4303,2000.0,1998.5,200.0]
[1617371637010,65.4303,2000.0,1999.4,2.90695]
[1617371637410,30.0,1999.9,1998.5,200.0]
[1617371638113,65.4303,2000.0,1998.5,200.0]
[1617371638313,30.0,1999.9,1998.5,200.0]
[1617371639114,30.0,1999.9,1999.1,2.90695]
[1617371641116,4.43325,1999.2,1999.1,2.90695]
[1617371641517,1.5263,1999.2,1999.1,2.90695]
[1617371642217,64.4316,2000.0,1999.1,2.90695]
[1617371642617,94.4316,2000.0,1999.1,2.90695]
[1617371643017,94.4316,2000.0,1999.3,2.90695]
[1617371643216,94.4316,2000.0,1998.5,200.0]
[1617371645021,94.4316,2000.0,1999.3,2.90695]
[1617371645221,93.4329,2000.0,1998.5,200.0]
[1617371645420,34.9911,2000.0,1998.5,200.0]
[1617371645621,78.8006,1999.1,1998.5,200.0]
[1617371645822,80.0742,1999.1,1998.5,200.0]
[1617371647221,82.98115,1999.1,1998.9,2.90695]
[1617371652230,1.90825,1999.1,1998.9,2.90695]
[1617371652430,0.9877,2000.0,1998.9,4.84605]
[1617371652631,0.93382761,2000.1,1998.9,4.84605]
[1617371652831,0.93377795,2000.2,1998.9,4.84605]
[1617371653233,2.90695,2000.1,2000.0,2.90695]
[1617371654830,2.90695,2000.1,1998.9,1.9391]
[1617371655030,2.90695,2000.1,1998.8,61.4282]
[1617371655230,2.5905,2000.3,1999.8,2.90695]
[1617371655430,1.0143,2000.3,1999.8,2.90695]
[1617371657232,2.90695,1999.9,1999.8,2.90695]
[1617371657431,4.59335,1999.9,1998.6,2.0]
[1617371657630,60.503,1999.3,1998.6,2.0]
[1617371659230,60.503,1999.3,1998.5,200.0]
[1617371659231,63.40995,1999.3,1999.2,2.90695]
[1617371660530,60.503,1999.3,1999.2,2.90695]
[1617371660731,3.57113903,2000.3,1999.2,2.90695]
[1617371660931,67.0794,1999.8,1999.2,2.90695]
[1617371661135,67.0794,1999.8,1999.6,2.90695]
[1617371661632,67.0794,1999.8,1999.0,1.6118]
[1617371662934,67.0794,1999.8,1998.6,3.8156]
[1617371663136,67.0794,1999.8,1999.3,2.90695]
[1617371663334,68.7826,1999.8,1999.3,2.90695]